[Event "Queens Festival Final-C 2022"]
[Site "Tornelo"]
[Date "2022.06.25"]
[Round "1.1"]
[White "Orbe Vivero, Veronica Priscila"]
[Black "Castillo Beitia, Ashley Alexandra"]
[Result "0-1"]
[ECO "B22"]
[WhiteElo "1636"]
[BlackElo "1620"]
[Annotator "NA RC"]
[PlyCount "46"]
[EventDate "2022.06.24"]
[EventType "tourn"]
[EventCountry "NET"]
[SourceTitle "playchess.com"]
[Source "ChessBase"]
[SourceQuality "1"]
[TimeControl "180+2"]

1. e4 {[%emt 0:00:02]} c5 {[%emt 0:00:06]} 2. c3 {[%emt 0:00:03]} d5 {[%emt 0:00:02]} 3. exd5 {[%emt 0:00:01]} Qxd5 {[%emt 0:00:02]} 4. d4 {[%emt 0:00:02]} Nc6 {[%emt 0:00:02]} 5. Nf3 {[%emt 0:00:02]} Bf5 {[%emt 0:00:01]} 6. Be2 {[%emt 0:00:19]} Bxb1 {[%emt 0:00:05]} 7. Rxb1 {[%emt 0:00:02]} Nf6 {[%emt 0:00:03]} 8. O-O {[%emt 0:00:05]} e6 {[%emt 0:00:04]} 9. Be3 {[%emt 0:00:07]} cxd4 {[%emt 0:00:03]} 10. cxd4 {[%emt 0:00:02]} Be7 {[%emt 0:00:08]} 11. a3 {[%emt 0:00:10]} O-O {[%emt 0:00:03]} 12. b4 {[%emt 0:00:02]} a6 {[%emt 0:00:04]} 13. h3 {[%emt 0:00:26]} Rfd8 {[%emt 0:00:06]} 14. Rc1 {[%emt 0:00:26]} Rac8 {[%emt 0:00:12]} 15. Bc4 {[%emt 0:00:04]} Qd6 {[%emt 0:00:06]} 16. Qb3 {[%emt 0:00:13]} Nd5 {[%emt 0:00:21]} 17. Rfd1 {[%emt 0:00:11]} Bf6 {[%emt 0:00:12]} 18. b5 {[%emt 0:00:29]} Na5 {[%emt 0:00:04]} 19. Qa4 {[%emt 0:00:06]} Nxc4 {[%emt 0:00:09]} 20. Rxc4 {[%emt 0:00:03]} Nb6 {[%emt 0:00:01]} 21. Rxc8 {[%emt 0:00:14]} Nxa4 {[%emt 0:00:03]} 22. Rxd8+ {[%emt 0:00:02]} Qxd8 {[%emt 0:00:03]} 23. bxa6 {[%emt 0:00:02]} bxa6 {[%emt 0:00:02]} 0-1

[Event "Queens Festival Final-C 2022"]
[Site "Tornelo"]
[Date "2022.06.25"]
[Round "1.2"]
[White "Vicze, Zsofia"]
[Black "Pragnya H G"]
[Result "1-0"]
[ECO "B55"]
[WhiteElo "1749"]
[BlackElo "1605"]
[Annotator "NA RC"]
[PlyCount "105"]
[EventDate "2022.06.24"]
[EventType "tourn"]
[EventCountry "NET"]
[SourceTitle "playchess.com"]
[Source "ChessBase"]
[SourceQuality "1"]
[TimeControl "180+2"]

1. e4 {[%emt 0:00:02]} c5 {[%emt 0:00:05]} 2. Nf3 {[%emt 0:00:02]} d6 {[%emt 0:00:01]} 3. d4 {[%emt 0:00:02]} cxd4 {[%emt 0:00:01]} 4. Nxd4 {[%emt 0:00:02]} Nf6 {[%emt 0:00:01]} 5. f3 {[%emt 0:00:02]} a6 {[%emt 0:00:09]} 6. c4 {[%emt 0:00:28]} e5 {[%emt 0:00:02]} 7. Nc2 {[%emt 0:00:05]} Be6 {[%emt 0:00:01]} 8. Nc3 {[%emt 0:00:02]} Nbd7 {[%emt 0:00:06]} 9. Be3 {[%emt 0:00:02]} Be7 {[%emt 0:00:04]} 10. Be2 {[%emt 0:00:02]} O-O {[%emt 0:00:02]} 11. O-O {[%emt 0:00:03]} Rc8 {[%emt 0:00:02]} 12. b3 {[%emt 0:00:02]} Ne8 {[%emt 0:00:09]} 13. Bf2 {[%emt 0:00:05]} b5 {[%emt 0:00:18]} 14. Ne3 {[%emt 0:00:11]} bxc4 {[%emt 0:00:18]} 15. Nxc4 {[%emt 0:00:04]} f5 {[%emt 0:00:16]} 16. Rc1 {[%emt 0:00:04]} Nc5 {[%emt 0:00:20]} 17. Qc2 {[%emt 0:00:43]} Bg5 {[%emt 0:00:19]} 18. Rcd1 {[%emt 0:00:06]} Qc7 {[%emt 0:00:12]} 19. Qb1 {[%emt 0:00:33]} Kh8 {[%emt 0:00:04]} 20. Kh1 {[%emt 0:00:11]} Bxc4 {[%emt 0:00:14]} 21. Bxc4 {[%emt 0:00:03]} fxe4 {[%emt 0:00:02]} 22. Nxe4 {[%emt 0:00:05]} Nxe4 {[%emt 0:00:02]} 23. Qxe4 {[%emt 0:00:03]} Nf6 {[%emt 0:00:01]} 24. Qb1 {[%emt 0:00:04]} a5 {[%emt 0:00:09]} 25. Rd3 {[%emt 0:00:09]} e4 {[%emt 0:00:09]} 26. fxe4 {[%emt 0:00:10]} Nxe4 {[%emt 0:00:01]} 27. Bg1 {[%emt 0:00:12]} Nd2 {[%emt 0:00:09]} 28. Rxf8+ {[%emt 0:00:03]} Rxf8 {[%emt 0:00:02]} 29. Qb2 {[%emt 0:00:09]} Nxc4 {[%emt 0:00:03]} 30. bxc4 {[%emt 0:00:02]} Qxc4 {[%emt 0:00:01]} 31. Rxd6 {[%emt 0:00:02]} Bf6 {[%emt 0:00:06]} 32. Qd2 {[%emt 0:00:02]} h6 {[%emt 0:00:01]} 33. h3 {[%emt 0:00:03]} Be5 {[%emt 0:00:04]} 34. Rd8 {[%emt 0:00:02]} Rxd8 {[%emt 0:00:05]} 35. Qxd8+ {[%emt 0:00:01]} Kh7 {[%emt 0:00:01]} 36. Qd1 {[%emt 0:00:03]} Qe4 {[%emt 0:00:02]} 37. Qd2 {[%emt 0:00:02]} a4 {[%emt 0:00:03]} 38. a3 {[%emt 0:00:02]} Bf4 {[%emt 0:00:08]} 39. Qc3 {[%emt 0:00:02]} Be5 {[%emt 0:00:06]} 40. Qc5 {[%emt 0:00:02]} Bd4 {[%emt 0:00:05]} 41. Qxd4 {[%emt 0:00:03]} Qxd4 {[%emt 0:00:01]} 42. Bxd4 {[%emt 0:00:01]} g5 {[%emt 0:00:01]} 43. Kg1 {[%emt 0:00:02]} Kg6 {[%emt 0:00:01]} 44. Kf2 {[%emt 0:00:01]} Kf5 {[%emt 0:00:00]} 45. Ke3 {[%emt 0:00:01]} h5 {[%emt 0:00:02]} 46. Kf3 {[%emt 0:00:03]} g4+ {[%emt 0:00:05]} 47. hxg4+ {[%emt 0:00:02]} hxg4+ {[%emt 0:00:01]} 48. Ke3 {[%emt 0:00:02]} Kg6 {[%emt 0:00:06]} 49. g3 {[%emt 0:00:01]} Kf5 {[%emt 0:00:01]} 50. Bc5 {[%emt 0:00:02]} Ke6 {[%emt 0:00:00]} 51. Kf4 {[%emt 0:00:02]} Kd5 {[%emt 0:00:02]} 52. Bb4 {[%emt 0:00:01]} Kc4 {[%emt 0:00:02]} 53. Kxg4 {[%emt 0:00:02]} 1-0

[Event "Queens Festival Final-C 2022"]
[Site "Tornelo"]
[Date "2022.06.25"]
[Round "1.4"]
[White "Jimenez Salas, Maria Teresa"]
[Black "Lampard, Alice"]
[Result "1-0"]
[ECO "B38"]
[WhiteElo "1813"]
[BlackElo "1756"]
[Annotator "NA RC"]
[PlyCount "77"]
[EventDate "2022.06.24"]
[EventType "tourn"]
[EventCountry "NET"]
[SourceTitle "playchess.com"]
[Source "ChessBase"]
[SourceQuality "1"]
[TimeControl "180+2"]

1. e4 {[%emt 0:00:02]} c5 {[%emt 0:00:05]} 2. Nf3 {[%emt 0:00:03]} Nc6 {[%emt 0:00:02]} 3. d4 {[%emt 0:00:02]} cxd4 {[%emt 0:00:01]} 4. Nxd4 {[%emt 0:00:01]} g6 {[%emt 0:00:01]} 5. c4 {[%emt 0:00:03]} Bg7 {[%emt 0:00:03]} 6. Be3 {[%emt 0:00:02]} Qb6 {[%emt 0:00:01]} 7. Nb3 {[%emt 0:00:17]} Qc7 {[%emt 0:00:16]} 8. Qd2 {[%emt 0:00:08]} Nf6 {[%emt 0:00:11]} 9. f3 {[%emt 0:00:09]} d6 {[%emt 0:00:07]} 10. Nc3 {[%emt 0:00:03]} b6 {[%emt 0:00:01]} 11. Be2 {[%emt 0:00:07]} O-O {[%emt 0:00:02]} 12. O-O {[%emt 0:00:02]} Be6 {[%emt 0:00:03]} 13. Rac1 {[%emt 0:00:04]} Rac8 {[%emt 0:00:17]} 14. Nd5 {[%emt 0:00:33]} Qb7 {[%emt 0:00:05]} 15. Rfd1 {[%emt 0:00:11]} Bxd5 {[%emt 0:00:18]} 16. cxd5 {[%emt 0:00:02]} Ne5 {[%emt 0:00:13]} 17. Nd4 {[%emt 0:00:02]} Qd7 {[%emt 0:00:49]} 18. h3 {[%emt 0:00:19]} Qb7 {[%emt 0:00:33]} 19. a3 {[%emt 0:00:06]} a6 {[%emt 0:00:07]} 20. a4 {[%emt 0:00:15]} Rfe8 {[%emt 0:00:12]} 21. b4 {[%emt 0:00:06]} Ned7 {[%emt 0:00:06]} 22. Nc6 {[%emt 0:00:10]} Ne5 {[%emt 0:00:01]} 23. b5 {[%emt 0:00:06]} Nxc6 {[%emt 0:00:02]} 24. bxc6 {[%emt 0:00:19]} Qa7 {[%emt 0:00:03]} 25. Rb1 {[%emt 0:00:02]} Rb8 {[%emt 0:00:03]} 26. a5 {[%emt 0:00:02]} Rec8 {[%emt 0:00:04]} 27. axb6 {[%emt 0:00:01]} Qa8 {[%emt 0:00:03]} 28. b7 {[%emt 0:00:02]} Rxb7 {[%emt 0:00:02]} 29. cxb7 {[%emt 0:00:02]} Qb8 {[%emt 0:00:01]} 30. bxc8=Q+ {[%emt 0:00:02]} Qxc8 {[%emt 0:00:00]} 31. Rdc1 {[%emt 0:00:02]} Qd7 {[%emt 0:00:02]} 32. Bxa6 {[%emt 0:00:03]} h5 {[%emt 0:00:02]} 33. Bd3 {[%emt 0:00:11]} Kh7 {[%emt 0:00:01]} 34. Rc2 {[%emt 0:00:09]} Ne8 {[%emt 0:00:06]} 35. Ra2 {[%emt 0:00:01]} Nc7 {[%emt 0:00:05]} 36. Ra7 {[%emt 0:00:02]} Qc8 {[%emt 0:00:01]} 37. Rc1 {[%emt 0:00:02]} Qb8 {[%emt 0:00:02]} 38. Rcxc7 {[%emt 0:00:03]} Qb3 {[%emt 0:00:02]} 39. Rxe7 {[%emt 0:00:04]} 1-0

[Event "Queens Festival Final-C 2022"]
[Site "Tornelo"]
[Date "2022.06.25"]
[Round "1.5"]
[White "Davari, Sara"]
[Black "Stadlinger, Lea"]
[Result "1-0"]
[ECO "C54"]
[WhiteElo "1674"]
[BlackElo "1723"]
[Annotator "NA RC"]
[PlyCount "79"]
[EventDate "2022.06.24"]
[EventType "tourn"]
[EventCountry "NET"]
[SourceTitle "playchess.com"]
[Source "ChessBase"]
[SourceQuality "1"]
[TimeControl "180+2"]

1. e4 {[%emt 0:00:02]} e5 {[%emt 0:00:09]} 2. Nf3 {[%emt 0:00:02]} Nc6 {[%emt 0:00:02]} 3. Bc4 {[%emt 0:00:01]} Bc5 {[%emt 0:00:03]} 4. c3 {[%emt 0:00:01]} Nf6 {[%emt 0:00:05]} 5. d3 {[%emt 0:00:03]} d6 {[%emt 0:00:04]} 6. O-O {[%emt 0:00:02]} Be6 {[%emt 0:00:03]} 7. Bb3 {[%emt 0:00:03]} O-O {[%emt 0:00:02]} 8. Nbd2 {[%emt 0:00:02]} Ne7 {[%emt 0:00:16]} 9. Re1 {[%emt 0:00:17]} Ng4 {[%emt 0:00:07]} 10. d4 {[%emt 0:00:05]} exd4 {[%emt 0:00:09]} 11. cxd4 {[%emt 0:00:02]} Bb6 {[%emt 0:00:07]} 12. h3 {[%emt 0:00:04]} Nf6 {[%emt 0:00:03]} 13. Nf1 {[%emt 0:00:06]} Ng6 {[%emt 0:00:02]} 14. Ng3 {[%emt 0:00:03]} Bxb3 {[%emt 0:00:16]} 15. Qxb3 {[%emt 0:00:08]} Re8 {[%emt 0:00:04]} 16. Bd2 {[%emt 0:00:08]} c6 {[%emt 0:00:04]} 17. Qc2 {[%emt 0:00:19]} d5 {[%emt 0:00:10]} 18. e5 {[%emt 0:00:03]} Nd7 {[%emt 0:00:03]} 19. Nf5 {[%emt 0:00:12]} Bc7 {[%emt 0:00:15]} 20. b4 {[%emt 0:00:17]} Ne7 {[%emt 0:00:04]} 21. Bg5 {[%emt 0:00:18]} f6 {[%emt 0:00:10]} 22. Nxe7+ {[%emt 0:00:23]} Rxe7 {[%emt 0:00:12]} 23. Bh4 {[%emt 0:00:08]} Qf8 {[%emt 0:00:18]} 24. exf6 {[%emt 0:00:23]} Nxf6 {[%emt 0:00:05]} 25. Rxe7 {[%emt 0:00:04]} Qxe7 {[%emt 0:00:03]} 26. Re1 {[%emt 0:00:02]} Qxb4 {[%emt 0:00:06]} 27. Bxf6 {[%emt 0:00:02]} gxf6 {[%emt 0:00:02]} 28. Qf5 {[%emt 0:00:03]} Qf8 {[%emt 0:00:16]} 29. Re6 {[%emt 0:00:07]} Kg7 {[%emt 0:00:04]} 30. Nh4 {[%emt 0:00:11]} Re8 {[%emt 0:00:03]} 31. Qg4+ {[%emt 0:00:05]} Kh8 {[%emt 0:00:04]} 32. Qe2 {[%emt 0:00:03]} Rxe6 {[%emt 0:00:07]} 33. Qxe6 {[%emt 0:00:01]} Kg7 {[%emt 0:00:08]} 34. Nf5+ {[%emt 0:00:08]} Kg6 {[%emt 0:00:01]} 35. Ne7+ {[%emt 0:00:03]} Kg7 {[%emt 0:00:06]} 36. Nf5+ {[%emt 0:00:05]} Kh8 {[%emt 0:00:02]} 37. Qd7 {[%emt 0:00:04]} Bb6 {[%emt 0:00:05]} 38. Qe6 {[%emt 0:00:01]} Qg8 {[%emt 0:00:03]} 39. Qxf6+ {[%emt 0:00:04]} Qg7 {[%emt 0:00:01]} 40. Qxg7# {[%emt 0:00:01]} 1-0

[Event "Queens Festival Final-C 2022"]
[Site "Tornelo"]
[Date "2022.06.25"]
[Round "2.1"]
[White "Castillo Beitia, Ashley Alexandra"]
[Black "Stadlinger, Lea"]
[Result "1-0"]
[ECO "D36"]
[WhiteElo "1620"]
[BlackElo "1723"]
[Annotator "NA RC"]
[PlyCount "71"]
[EventDate "2022.06.24"]
[EventType "tourn"]
[EventCountry "NET"]
[SourceTitle "playchess.com"]
[Source "ChessBase"]
[SourceQuality "1"]
[TimeControl "180+2"]

1. d4 {[%emt 0:00:02]} d5 {[%emt 0:00:06]} 2. c4 {[%emt 0:00:03]} e6 {[%emt 0:00:01]} 3. Nc3 {[%emt 0:00:03]} Nf6 {[%emt 0:00:02]} 4. cxd5 {[%emt 0:00:02]} exd5 {[%emt 0:00:03]} 5. Bg5 {[%emt 0:00:02]} c6 {[%emt 0:00:03]} 6. e3 {[%emt 0:00:05]} Be7 {[%emt 0:00:02]} 7. Bd3 {[%emt 0:00:02]} O-O {[%emt 0:00:01]} 8. Qc2 {[%emt 0:00:01]} h6 {[%emt 0:00:03]} 9. Bh4 {[%emt 0:00:02]} Nbd7 {[%emt 0:00:06]} 10. Nge2 {[%emt 0:00:02]} c5 {[%emt 0:00:10]} 11. O-O {[%emt 0:00:04]} c4 {[%emt 0:00:09]} 12. Bf5 {[%emt 0:00:02]} a6 {[%emt 0:00:06]} 13. Bxd7 {[%emt 0:00:07]} Qxd7 {[%emt 0:00:04]} 14. Bxf6 {[%emt 0:00:08]} Bxf6 {[%emt 0:00:03]} 15. Nf4 {[%emt 0:00:02]} b5 {[%emt 0:00:30]} 16. Ncxd5 {[%emt 0:00:07]} Qc6 {[%emt 0:00:14]} 17. Qe4 {[%emt 0:00:14]} Bb7 {[%emt 0:00:13]} 18. Nxf6+ {[%emt 0:00:03]} gxf6 {[%emt 0:00:08]} 19. Qxc6 {[%emt 0:00:15]} Bxc6 {[%emt 0:00:01]} 20. Rfd1 {[%emt 0:00:04]} Rad8 {[%emt 0:00:07]} 21. d5 {[%emt 0:00:03]} Bb7 {[%emt 0:00:03]} 22. Rd4 {[%emt 0:00:02]} Rfe8 {[%emt 0:00:05]} 23. Rad1 {[%emt 0:00:04]} Rd6 {[%emt 0:00:12]} 24. a4 {[%emt 0:00:07]} Rc8 {[%emt 0:00:12]} 25. axb5 {[%emt 0:00:03]} axb5 {[%emt 0:00:02]} 26. Ne2 {[%emt 0:00:02]} Ba6 {[%emt 0:00:02]} 27. Nc3 {[%emt 0:00:02]} f5 {[%emt 0:00:10]} 28. e4 {[%emt 0:00:04]} b4 {[%emt 0:00:07]} 29. Na2 {[%emt 0:00:19]} fxe4 {[%emt 0:00:13]} 30. Nxb4 {[%emt 0:00:05]} Bb7 {[%emt 0:00:14]} 31. Rxe4 {[%emt 0:00:03]} Rc5 {[%emt 0:00:03]} 32. Red4 {[%emt 0:00:04]} Rb5 {[%emt 0:00:02]} 33. Rxc4 {[%emt 0:00:03]} Bxd5 {[%emt 0:00:09]} 34. Rcd4 {[%emt 0:00:08]} Rc5 {[%emt 0:00:12]} 35. Nxd5 {[%emt 0:00:04]} Rdxd5 {[%emt 0:00:03]} 36. Rxd5 {[%emt 0:00:02]} 1-0

[Event "Queens Festival Final-C 2022"]
[Site "Tornelo"]
[Date "2022.06.25"]
[Round "2.2"]
[White "Lampard, Alice"]
[Black "Davari, Sara"]
[Result "1-0"]
[ECO "D36"]
[WhiteElo "1756"]
[BlackElo "1674"]
[Annotator "NA RC"]
[PlyCount "141"]
[EventDate "2022.06.24"]
[EventType "tourn"]
[EventCountry "NET"]
[SourceTitle "playchess.com"]
[Source "ChessBase"]
[SourceQuality "1"]
[TimeControl "180+2"]

1. d4 {[%emt 0:00:02]} d5 {[%emt 0:00:05]} 2. c4 {[%emt 0:00:02]} e6 {[%emt 0:00:01]} 3. Nc3 {[%emt 0:00:03]} Nf6 {[%emt 0:00:03]} 4. cxd5 {[%emt 0:00:01]} exd5 {[%emt 0:00:02]} 5. Qc2 {[%emt 0:00:02]} Be7 {[%emt 0:00:02]} 6. Bg5 {[%emt 0:00:02]} c6 {[%emt 0:00:02]} 7. e3 {[%emt 0:00:02]} O-O {[%emt 0:00:02]} 8. Nf3 {[%emt 0:00:02]} Re8 {[%emt 0:00:05]} 9. Be2 {[%emt 0:00:01]} h6 {[%emt 0:00:10]} 10. Bf4 {[%emt 0:00:09]} Bg4 {[%emt 0:00:06]} 11. O-O {[%emt 0:00:07]} Nbd7 {[%emt 0:00:03]} 12. Rab1 {[%emt 0:00:10]} a5 {[%emt 0:00:06]} 13. a3 {[%emt 0:00:01]} Bh5 {[%emt 0:00:12]} 14. Nd2 {[%emt 0:00:14]} Bxe2 {[%emt 0:00:22]} 15. Nxe2 {[%emt 0:00:00]} a4 {[%emt 0:00:16]} 16. Nc3 {[%emt 0:00:10]} Qa5 {[%emt 0:00:07]} 17. Rfc1 {[%emt 0:00:35]} Nh5 {[%emt 0:00:19]} 18. Ne2 {[%emt 0:00:12]} Nxf4 {[%emt 0:00:07]} 19. Nxf4 {[%emt 0:00:00]} Nf6 {[%emt 0:00:03]} 20. Nd3 {[%emt 0:00:23]} Bd6 {[%emt 0:00:07]} 21. h3 {[%emt 0:00:06]} Ne4 {[%emt 0:00:14]} 22. Nxe4 {[%emt 0:00:09]} dxe4 {[%emt 0:00:01]} 23. Nc5 {[%emt 0:00:05]} Bxc5 {[%emt 0:00:15]} 24. Qxc5 {[%emt 0:00:05]} Qa6 {[%emt 0:00:13]} 25. Qc4 {[%emt 0:00:09]} Qa5 {[%emt 0:00:07]} 26. Qc5 {[%emt 0:00:07]} Qa6 {[%emt 0:00:03]} 27. Qc4 {[%emt 0:00:12]} Qa5 {[%emt 0:00:04]} 28. Rc3 {[%emt 0:00:03]} Qd8 {[%emt 0:00:25]} 29. Qb4 {[%emt 0:00:09]} Qd7 {[%emt 0:00:02]} 30. Rc5 {[%emt 0:00:05]} Ra6 {[%emt 0:00:10]} 31. Rbc1 {[%emt 0:00:05]} Rd8 {[%emt 0:00:03]} 32. Qc3 {[%emt 0:00:11]} Rf8 {[%emt 0:00:04]} 33. Qc2 {[%emt 0:00:01]} Re8 {[%emt 0:00:02]} 34. Rd1 {[%emt 0:00:05]} Qe7 {[%emt 0:00:02]} 35. Qc4 {[%emt 0:00:05]} Qd7 {[%emt 0:00:02]} 36. d5 {[%emt 0:00:05]} cxd5 {[%emt 0:00:02]} 37. Rdxd5 {[%emt 0:00:01]} Qe6 {[%emt 0:00:01]} 38. Rd4 {[%emt 0:00:07]} Qxc4 {[%emt 0:00:02]} 39. Rcxc4 {[%emt 0:00:00]} b5 {[%emt 0:00:02]} 40. Rb4 {[%emt 0:00:06]} Rb6 {[%emt 0:00:03]} 41. Rxe4 {[%emt 0:00:01]} Rc8 {[%emt 0:00:03]} 42. Kh2 {[%emt 0:00:02]} Rc2 {[%emt 0:00:02]} 43. Re5 {[%emt 0:00:01]} Rxf2 {[%emt 0:00:02]} 44. Rexb5 {[%emt 0:00:02]} Rg6 {[%emt 0:00:01]} 45. Rg4 {[%emt 0:00:03]} Rxg4 {[%emt 0:00:02]} 46. hxg4 {[%emt 0:00:00]} Re2 {[%emt 0:00:02]} 47. Rb4 {[%emt 0:00:03]} Rxe3 {[%emt 0:00:02]} 48. Rxa4 {[%emt 0:00:01]} Re2 {[%emt 0:00:02]} 49. b4 {[%emt 0:00:01]} Re4 {[%emt 0:00:01]} 50. Ra8+ {[%emt 0:00:02]} Kh7 {[%emt 0:00:02]} 51. Kg3 {[%emt 0:00:01]} Re3+ {[%emt 0:00:01]} 52. Kf4 {[%emt 0:00:02]} Rb3 {[%emt 0:00:02]} 53. Ra5 {[%emt 0:00:03]} g5+ {[%emt 0:00:02]} 54. Ke4 {[%emt 0:00:03]} Rg3 {[%emt 0:00:02]} 55. Kf5 {[%emt 0:00:04]} Kg7 {[%emt 0:00:02]} 56. Ra7 {[%emt 0:00:03]} Rxg2 {[%emt 0:00:02]} 57. b5 {[%emt 0:00:02]} Rf2+ {[%emt 0:00:02]} 58. Ke4 {[%emt 0:00:01]} Rf4+ {[%emt 0:00:01]} 59. Ke3 {[%emt 0:00:01]} Rxg4 {[%emt 0:00:01]} 60. b6 {[%emt 0:00:01]} Rg1 {[%emt 0:00:01]} 61. Ra4 {[%emt 0:00:03]} Rc1 {[%emt 0:00:03]} 62. b7 {[%emt 0:00:03]} Rb1 {[%emt 0:00:05]} 63. Rb4 {[%emt 0:00:01]} Re1+ {[%emt 0:00:01]} 64. Kf2 {[%emt 0:00:01]} Re8 {[%emt 0:00:01]} 65. b8=Q {[%emt 0:00:03]} Rxb8 {[%emt 0:00:01]} 66. Rxb8 {[%emt 0:00:00]} h5 {[%emt 0:00:01]} 67. a4 {[%emt 0:00:01]} g4 {[%emt 0:00:01]} 68. a5 {[%emt 0:00:01]} h4 {[%emt 0:00:00]} 69. a6 {[%emt 0:00:02]} f5 {[%emt 0:00:02]} 70. a7 {[%emt 0:00:01]} f4 {[%emt 0:00:00]} 71. a8=Q {[%emt 0:00:03]} 1-0

[Event "Queens Festival Final-C 2022"]
[Site "Tornelo"]
[Date "2022.06.25"]
[Round "2.3"]
[White "Sanudula, K M Dahamdi"]
[Black "Jimenez Salas, Maria Teresa"]
[Result "1-0"]
[ECO "D00"]
[WhiteElo "1710"]
[BlackElo "1813"]
[Annotator "NA RC"]
[PlyCount "141"]
[EventDate "2022.06.24"]
[EventType "tourn"]
[EventCountry "NET"]
[SourceTitle "playchess.com"]
[Source "ChessBase"]
[SourceQuality "1"]
[TimeControl "180+2"]

1. d4 {[%emt 0:00:02]} d5 {[%emt 0:00:05]} 2. e3 {[%emt 0:00:02]} Nf6 {[%emt 0:00:05]} 3. Bd3 {[%emt 0:00:01]} c5 {[%emt 0:00:10]} 4. c3 {[%emt 0:00:02]} Nc6 {[%emt 0:00:04]} 5. f4 {[%emt 0:00:03]} Bg4 {[%emt 0:00:23]} 6. Nf3 {[%emt 0:00:02]} e6 {[%emt 0:00:03]} 7. Nbd2 {[%emt 0:00:02]} Be7 {[%emt 0:00:11]} 8. O-O {[%emt 0:00:02]} O-O {[%emt 0:00:03]} 9. Qe1 {[%emt 0:00:01]} Qc7 {[%emt 0:00:30]} 10. Ne5 {[%emt 0:00:02]} Bf5 {[%emt 0:00:17]} 11. Bb1 {[%emt 0:00:22]} Bxb1 {[%emt 0:00:10]} 12. Rxb1 {[%emt 0:00:01]} Ne4 {[%emt 0:00:05]} 13. Qe2 {[%emt 0:00:07]} f6 {[%emt 0:00:09]} 14. Ng4 {[%emt 0:00:15]} a6 {[%emt 0:00:18]} 15. Nxe4 {[%emt 0:00:09]} dxe4 {[%emt 0:00:02]} 16. Qc4 {[%emt 0:00:01]} Nd8 {[%emt 0:00:12]} 17. f5 {[%emt 0:00:08]} b5 {[%emt 0:00:02]} 18. Qe2 {[%emt 0:00:21]} exf5 {[%emt 0:00:04]} 19. Rxf5 {[%emt 0:00:02]} Ne6 {[%emt 0:00:06]} 20. Bd2 {[%emt 0:00:11]} Kh8 {[%emt 0:00:11]} 21. Be1 {[%emt 0:00:13]} Qb7 {[%emt 0:00:10]} 22. Bg3 {[%emt 0:00:06]} b4 {[%emt 0:00:05]} 23. Re1 {[%emt 0:00:16]} bxc3 {[%emt 0:00:02]} 24. bxc3 {[%emt 0:00:01]} a5 {[%emt 0:00:07]} 25. Qc4 {[%emt 0:00:03]} Ra6 {[%emt 0:00:02]} 26. Rff1 {[%emt 0:00:13]} Rc8 {[%emt 0:00:02]} 27. Qe2 {[%emt 0:00:05]} Rb6 {[%emt 0:00:02]} 28. Rd1 {[%emt 0:00:09]} Rb2 {[%emt 0:00:02]} 29. Rd2 {[%emt 0:00:01]} Rb5 {[%emt 0:00:01]} 30. d5 {[%emt 0:00:05]} Ng5 {[%emt 0:00:05]} 31. d6 {[%emt 0:00:06]} Bd8 {[%emt 0:00:01]} 32. Nf2 {[%emt 0:00:09]} a4 {[%emt 0:00:04]} 33. Qc4 {[%emt 0:00:03]} a3 {[%emt 0:00:05]} 34. h4 {[%emt 0:00:03]} h6 {[%emt 0:00:10]} 35. hxg5 {[%emt 0:00:01]} fxg5 {[%emt 0:00:01]} 36. Nxe4 {[%emt 0:00:03]} Qd7 {[%emt 0:00:01]} 37. Rf8+ {[%emt 0:00:06]} Kh7 {[%emt 0:00:02]} 38. Qg8+ {[%emt 0:00:05]} Kg6 {[%emt 0:00:01]} 39. Rdf2 {[%emt 0:00:04]} Rb1+ {[%emt 0:00:03]} 40. Kh2 {[%emt 0:00:01]} Qg4 {[%emt 0:00:02]} 41. Qf7+ {[%emt 0:00:04]} Kh7 {[%emt 0:00:01]} 42. Qf5+ {[%emt 0:00:03]} Qxf5 {[%emt 0:00:01]} 43. R8xf5 {[%emt 0:00:02]} Rb2 {[%emt 0:00:01]} 44. d7 {[%emt 0:00:03]} Ra8 {[%emt 0:00:04]} 45. Nxc5 {[%emt 0:00:03]} Ra7 {[%emt 0:00:04]} 46. Nd3 {[%emt 0:00:06]} Rxf2 {[%emt 0:00:02]} 47. Rxf2 {[%emt 0:00:01]} Rxd7 {[%emt 0:00:01]} 48. Ne5 {[%emt 0:00:02]} Re7 {[%emt 0:00:03]} 49. c4 {[%emt 0:00:01]} Re6 {[%emt 0:00:01]} 50. c5 {[%emt 0:00:03]} Bc7 {[%emt 0:00:02]} 51. Nd3 {[%emt 0:00:03]} Bxg3+ {[%emt 0:00:02]} 52. Kxg3 {[%emt 0:00:01]} Rxe3+ {[%emt 0:00:01]} 53. Rf3 {[%emt 0:00:02]} Re2 {[%emt 0:00:03]} 54. Nb4 {[%emt 0:00:02]} Rb2 {[%emt 0:00:02]} 55. Rb3 {[%emt 0:00:06]} Rd2 {[%emt 0:00:01]} 56. c6 {[%emt 0:00:02]} Rd8 {[%emt 0:00:02]} 57. c7 {[%emt 0:00:01]} Rc8 {[%emt 0:00:01]} 58. Nd5 {[%emt 0:00:01]} Kg6 {[%emt 0:00:02]} 59. Rb8 {[%emt 0:00:01]} Rxc7 {[%emt 0:00:01]} 60. Nxc7 {[%emt 0:00:00]} h5 {[%emt 0:00:01]} 61. Ra8 {[%emt 0:00:02]} h4+ {[%emt 0:00:02]} 62. Kg4 {[%emt 0:00:01]} Kh6 {[%emt 0:00:01]} 63. Ra6+ {[%emt 0:00:02]} Kh7 {[%emt 0:00:02]} 64. Kxg5 {[%emt 0:00:02]} h3 {[%emt 0:00:06]} 65. gxh3 {[%emt 0:00:02]} Kg8 {[%emt 0:00:01]} 66. Ne6 {[%emt 0:00:02]} Kh7 {[%emt 0:00:02]} 67. Ra7 {[%emt 0:00:02]} Kh8 {[%emt 0:00:01]} 68. Kg6 {[%emt 0:00:02]} Kg8 {[%emt 0:00:02]} 69. Rxg7+ {[%emt 0:00:02]} Kh8 {[%emt 0:00:03]} 70. Ra7 {[%emt 0:00:00]} Kg8 {[%emt 0:00:01]} 71. Ra8# {[%emt 0:00:01]} 1-0

[Event "Queens Festival Final-C 2022"]
[Site "Tornelo"]
[Date "2022.06.25"]
[Round "2.5"]
[White "Orbe Vivero, Veronica Priscila"]
[Black "Vicze, Zsofia"]
[Result "1-0"]
[ECO "C02"]
[WhiteElo "1636"]
[BlackElo "1749"]
[Annotator "NA RC"]
[PlyCount "49"]
[EventDate "2022.06.24"]
[EventType "tourn"]
[EventCountry "NET"]
[SourceTitle "playchess.com"]
[Source "ChessBase"]
[SourceQuality "1"]
[TimeControl "180+2"]

1. e4 {[%emt 0:00:02]} c5 {[%emt 0:00:05]} 2. c3 {[%emt 0:00:02]} Nc6 {[%emt 0:00:03]} 3. d4 {[%emt 0:00:03]} cxd4 {[%emt 0:00:02]} 4. cxd4 {[%emt 0:00:01]} d5 {[%emt 0:00:01]} 5. e5 {[%emt 0:00:02]} e6 {[%emt 0:00:03]} 6. Nc3 {[%emt 0:00:05]} Bb4 {[%emt 0:00:01]} 7. Nf3 {[%emt 0:00:10]} Nge7 {[%emt 0:00:02]} 8. Bd3 {[%emt 0:00:02]} O-O {[%emt 0:00:04]} 9. O-O {[%emt 0:00:03]} h6 {[%emt 0:00:02]} 10. Ne2 {[%emt 0:00:11]} Qb6 {[%emt 0:00:07]} 11. a3 {[%emt 0:00:08]} a5 {[%emt 0:00:12]} 12. axb4 {[%emt 0:00:03]} Nxb4 {[%emt 0:00:02]} 13. Bb1 {[%emt 0:00:04]} Bd7 {[%emt 0:00:02]} 14. Nc3 {[%emt 0:00:34]} Rfc8 {[%emt 0:00:07]} 15. Be3 {[%emt 0:00:23]} Nec6 {[%emt 0:00:22]} 16. Qd2 {[%emt 0:00:05]} Na7 {[%emt 0:00:13]} 17. Bxh6 {[%emt 0:00:06]} g6 {[%emt 0:00:21]} 18. Bg5 {[%emt 0:00:10]} Bb5 {[%emt 0:00:43]} 19. Bf6 {[%emt 0:00:11]} Kh7 {[%emt 0:00:02]} 20. Ng5+ {[%emt 0:00:03]} Kg8 {[%emt 0:00:02]} 21. Rd1 {[%emt 0:00:13]} Qc7 {[%emt 0:00:17]} 22. Qf4 {[%emt 0:00:08]} Kf8 {[%emt 0:00:11]} 23. Bxg6 {[%emt 0:00:13]} Be8 {[%emt 0:00:20]} 24. Nh7+ {[%emt 0:00:04]} Kg8 {[%emt 0:00:03]} 25. Bb1 {[%emt 0:00:04]} 1-0